fUST/lending_fUST_20251025
["ID","MTS","AMOUNT","RATE_DAILY","PERIOD"]
[392349279,1761391832897,-500.29004096,0.00018763,2]
[392349281,1761391832906,-500.0,0.00018763,2]
[392349283,1761391832915,-500.0,0.00018763,2]
[392349285,1761391832924,-500.0,0.00018763,2]
[392349287,1761391832934,-500.0,0.00018763,2]
[392349289,1761391832943,-1283.87,0.00018763,2]
[392349291,1761391832953,-500.0,0.00018763,2]
[392349294,1761391832963,-500.0,0.00018763,2]
[392349296,1761391832973,-500.0,0.00018763,2]
[392349298,1761391832983,-500.0,0.00018763,2]
[392349300,1761391832992,-500.0,0.00018763,2]
[392349302,1761391833001,-500.0,0.00018763,2]
[392349304,1761391833010,-500.0,0.00018763,2]
[392349306,1761391833019,-213.96859442,0.00018764,2]
[392349308,1761391833029,-50000.0,0.00018764,2]
[392349310,1761391833039,-500.0,0.00018764,2]
[392349312,1761391833048,-500.0,0.00018764,2]
[392349314,1761391833058,-1348.12,0.00018764,2]
[392349316,1761391833068,-1889.12,0.00018764,2]
[392349318,1761391833077,-1239.66,0.00018764,2]
[392349320,1761391833087,-500.0,0.00018764,2]
[392349321,1761391833097,-500.0,0.00018764,2]
[392349323,1761391833107,-499.16740009,0.00018764,2]
[392349325,1761391833117,-500.0,0.00018764,2]
[392349327,1761391833127,-500.0,0.00018764,2]
[392349328,1761391833137,-500.0,0.00018764,2]
[392349329,1761391833146,-504.87021481,0.00018764,2]
[392349330,1761391833156,-1767.73,0.00018764,2]
[392349331,1761391833165,-500.0,0.00018764,2]
[392349332,1761391833175,-500.0,0.00018764,2]
[392349333,1761391833184,-2022.68,0.00018764,2]
[392349334,1761391833194,-1741.82,0.00018764,2]
[392349335,1761391833203,-500.0,0.00018764,2]
[392349336,1761391833212,-500.0,0.00018764,2]
[392349337,1761391833222,-3016.27,0.00018764,2]
[392349338,1761391833232,-1247.02,0.00018764,2]
[392349339,1761391833241,-560.67415422,0.00018764,2]
[392349340,1761391833251,-815.21,0.00018764,2]
[392349341,1761391833260,-2521.48,0.00018764,2]
[392349342,1761391833269,-4206.63,0.00018764,2]
[392349343,1761391833278,-500.0,0.00018764,2]
[392349344,1761391833287,-866.13,0.00018765,3]
[392349345,1761391833298,-433.07,0.00018765,3]
[392349346,1761391833308,-216.53,0.00018765,3]
[392349347,1761391833320,-649.63,0.00018765,3]
[392349348,1761391833330,-501.34703801,0.00018771,2]
[392349349,1761391833339,-500.0,0.00018771,2]
[392349350,1761391833350,-600.73,0.00018771,2]
[392349351,1761391833363,-500.0,0.00018771,2]
[392349352,1761391833373,-500.0,0.00018771,2]
[392349353,1761391833382,-500.0,0.00018771,2]
[392349354,1761391833392,-565.35,0.00018771,2]
[392349355,1761391833403,-500.0,0.00018771,2]
[392349356,1761391833412,-500.87784989,0.00018771,2]
[392349357,1761391833422,-472.68431733,0.00018771,2]
[392349358,1761391833431,-1896.02,0.00018771,2]
[392349359,1761391833440,-653.18,0.00018771,2]
[392349360,1761391833451,-500.0,0.00018771,2]
[392349361,1761391833461,-306.05539394,0.00018771,2]
[392349362,1761391833470,-500.0,0.00018771,2]
[392349363,1761391833480,-500.0,0.00018771,2]
[392349364,1761391833490,-500.0,0.00018771,2]
[392349365,1761391833499,-500.0,0.00018771,2]
[392349366,1761391833509,-463.29656192,0.00018771,2]
[392349367,1761391833518,-500.0,0.00018771,2]
[392349368,1761391833527,-1270.55,0.00018771,2]
[392349369,1761391833537,-1311.13,0.00018771,2]
[392349370,1761391833546,-500.0,0.00018771,2]
[392349371,1761391833556,-1569.54,0.00018771,2]
[392349372,1761391833565,-2471.36,0.00018771,2]
[392349373,1761391833574,-500.0,0.00018771,2]
[392349374,1761391833583,-1934.07,0.00018771,2]
[392349375,1761391833594,-500.0,0.00018771,2]
[392349376,1761391833603,-500.0,0.00018771,2]
[392349377,1761391833614,-500.0,0.00018771,2]
[392349378,1761391833624,-1270.68,0.00018771,2]
[392349379,1761391833633,-500.0,0.00018771,2]
[392349380,1761391833644,-500.0,0.00018771,2]
[392349381,1761391833654,-3051.49,0.00018771,2]
[392349382,1761391833663,-500.0,0.00018771,2]
[392349383,1761391833672,-500.0,0.00018771,2]
[392349384,1761391833681,-500.0,0.00018771,2]
[392349385,1761391833690,-1248.97,0.00018771,2]
[392349386,1761391833700,-500.0,0.00018771,2]
[392349387,1761391833709,-500.0,0.00018771,2]
[392349388,1761391833719,-2454.95,0.00018771,2]
[392349389,1761391833728,-972.51,0.00018771,2]
[392349390,1761391833737,-500.0,0.00018771,2]
[392349391,1761391833747,-500.0,0.00018771,2]
[392349392,1761391833757,-2066.16,0.00018771,2]
[392349393,1761391833766,-886.01,0.00018771,2]
[392349394,1761391833775,-500.0,0.00018771,2]
[392349395,1761391833784,-502.21667145,0.00018771,2]
[392349396,1761391833794,-1294.2,0.00018771,2]
[392349397,1761391833803,-1018.32,0.00018771,2]
[392349398,1761391833812,-500.0,0.00018771,2]
[392349399,1761391833821,-500.0,0.00018771,2]
[392349400,1761391833830,-1381.0,0.00018771,2]
[392349401,1761391833840,-500.0,0.00018771,2]
[392349402,1761391833849,-500.0,0.00018771,2]
[392349403,1761391833858,-3031.18,0.00018771,2]
[392349404,1761391833867,-500.0,0.00018771,2]
[392349405,1761391833878,-500.0,0.00018771,2]
[392349406,1761391833888,-216.314925,0.00018771,2]
[392349407,1761391833897,-1162.01,0.00018771,2]
[392349408,1761391833906,-888.46,0.00018771,2]
[392349409,1761391833915,-312.33827833,0.00018771,2]
[392349765,1761391844463,-1590.82058531,0.00018763,2]
[392349794,1761391846820,-51.69941469,0.00018763,2]
[392349796,1761391846829,-1424.98,0.00018763,2]
[392349798,1761391846839,-500.0,0.00018763,2]
[392349800,1761391846847,-500.0,0.00018763,2]
[392349802,1761391846856,-505.08337927,0.00018763,2]
[392349804,1761391846865,-3912.87,0.00018763,2]
[392349806,1761391846874,-500.0,0.00018763,2]
[392349808,1761391846884,-500.0,0.00018763,2]
[392349810,1761391846893,-554.83,0.00018763,2]
[392349812,1761391846903,-500.0,0.00018764,2]
[392349814,1761391846912,-1256.5,0.00018764,2]
[392349816,1761391846921,-192.47451311,0.00018771,2]
[392349818,1761391846930,-381.90440938,0.00018771,2]
[392350211,1761391957884,344.50738495,0.00018672,2]
[392350212,1761391958938,344.50738495,0.00018686,2]
[392350213,1761392002156,276.58616224,0.00018607,2]
[392350214,1761392192523,2038.13762704,0.00018673,2]
[392350215,1761392204118,6496.27144082,0.00018671,2]
[392350216,1761392204144,10000.01,0.00018671,2]
[392350217,1761392204170,10000.01,0.00018671,2]
[392350218,1761392204198,10000.01,0.00018671,2]
[392350219,1761392204224,10000.01,0.00018671,2]
[392350220,1761392204249,10000.01,0.00018671,2]
[392350221,1761392204277,10000.01,0.00018671,2]
[392350222,1761392204303,10000.01,0.00018671,2]
[392350223,1761392204330,10000.01,0.00018671,2]
[392350224,1761392204357,10000.01,0.00018671,2]
[392350225,1761392204392,273503.63855918,0.00018671,2]
[392350226,1761392218351,5000.0,0.000187,2]
[392350229,1761392226337,5000.0,0.00018673,2]
[392350231,1761392242318,5000.0,0.00018696,2]
[392350232,1761392250712,5000.0,0.00018696,2]
[392350233,1761392266023,0.01,0.00018696,2]
[392350234,1761392266045,4999.99,0.00018696,2]
[392350235,1761392273996,5000.0,0.00018696,2]
[392350236,1761392283651,0.02,0.00015984,2]
[392350237,1761392283673,162.93,0.00015984,2]
[392350238,1761392283921,162.94,0.00015984,2]
[392350239,1761392290559,5000.0,0.00018696,2]
[392350240,1761392296881,206.70443097,0.00018663,2]
[392350241,1761392298442,4467.43556903,0.00018696,2]
[392350242,1761392298465,532.56443097,0.00018696,2]
[392350243,1761392298866,206.70443097,0.0001869,2]
[392350244,1761392314013,5000.0,0.00018696,2]
[392350245,1761392321995,4260.74113806,0.00018696,2]
[392350246,1761392322023,739.25886194,0.00018696,2]
[392350247,1761392333347,150.0,0.00017363,30]
[392350248,1761392333806,150.0,0.0001819,30]
[392350249,1761392334222,150.0,0.00019017,30]
[392350250,1761392334662,150.0,0.00019843,30]
[392350251,1761392334958,1000.0,0.00018695,2]
[392350252,1761392337481,5000.0,0.00018696,2]
[392350253,1761392345509,3260.75113806,0.00018696,2]
[392350254,1761392345532,1739.24886194,0.00018696,2]
[392350255,1761392361120,5000.0,0.00018696,2]
[392350256,1761392373990,3260.76113806,0.00018663,2]
[392350257,1761392374018,10000.01,0.00018663,2]
[392350258,1761392374044,10000.01,0.00018663,2]
[392350259,1761392374069,10000.01,0.00018663,2]
[392350260,1761392374096,10000.01,0.00018663,2]
[392350261,1761392374119,10000.01,0.00018663,2]
[392350262,1761392374142,10000.01,0.00018663,2]
[392350263,1761392374165,10000.01,0.00018663,2]
[392350264,1761392374196,296739.16886194,0.00018663,2]
[392350265,1761392383952,5000.0,0.00018673,2]
[392350266,1761392407794,150.0,0.00017367,30]
[392350267,1761392408232,150.0,0.00018194,30]
[392350268,1761392408669,150.0,0.00019021,30]
[392350269,1761392409119,150.0,0.00019848,30]
[392350270,1761392409794,5000.0,0.00018696,2]
[392350271,1761392433141,0.01,0.00018696,2]
[392350272,1761392433163,4999.99,0.00018696,2]
[392350273,1761392455482,5000.0,0.00018696,2]
[392350274,1761392479108,0.02,0.00018696,2]
[392350275,1761392479130,4999.98,0.00018696,2]
[392350276,1761392483845,150.0,0.00017316,30]
[392350277,1761392484434,150.0,0.0001814,30]
[392350278,1761392484907,150.0,0.00018965,30]
[392350279,1761392485378,150.0,0.0001979,30]
[392350280,1761392501276,5000.0,0.00018696,2]
[392350281,1761392512458,0.03,0.00018664,2]
[392350282,1761392512479,1358.72841802,0.00018664,2]
[392350283,1761392524063,439.24142869,0.00018696,2]
[392350284,1761392542725,8202.04015329,0.00018663,2]
[392350285,1761392542747,10000.01,0.00018663,2]
[392350286,1761392542768,10000.01,0.00018663,2]
[392350287,1761392542789,10000.01,0.00018663,2]
[392350288,1761392542815,10000.01,0.00018663,2]
[392350289,1761392542838,10000.01,0.00018663,2]
[392350290,1761392542859,10000.01,0.00018663,2]
[392350291,1761392542883,10000.01,0.00018663,2]
[392350292,1761392542904,10000.01,0.00018663,2]
[392350293,1761392542928,10000.01,0.00018663,2]
[392350294,1761392542956,16182.26265918,0.00018663,2]
[392350295,1761392543331,196.0,0.00018,2]
[392350296,1761392543582,196.0,0.0001805,2]
[392350297,1761392543857,202.97630987,0.000181,2]
[392350298,1761392554772,5000.0,0.00018297,2]
[392350299,1761392558812,-5000.0,0.00018476,2]
[392350300,1761392558974,-800.0,0.00018662,2]
[392350301,1761392559004,-157.51123272,0.00018662,2]
[392350302,1761392559035,-204.73415779,0.00018662,2]
[392350303,1761392559842,150.0,0.00017301,30]
[392350304,1761392560247,150.0,0.00018125,30]
[392350305,1761392560669,4326.68917747,0.00018476,2]
[392350306,1761392563073,3348.83004151,0.00018663,2]
[392350307,1761392563297,1460.77287379,0.00018663,2]
[392350308,1761392571335,5000.0,0.00018663,2]
[392350309,1761392579908,-5000.0,0.00018663,2]
[392350310,1761392585939,-300.0,0.00018662,2]
[392350311,1761392585991,-763.77790723,0.00018663,2]
[392350312,1761392587396,-10000.01,0.00018663,2]
[392350313,1761392587534,-10000.01,0.00018663,2]
[392350314,1761392587774,-10000.01,0.00018663,2]
[392350315,1761392587820,-10000.01,0.00018663,2]
[392350316,1761392587943,-10000.01,0.00018663,2]
[392350317,1761392588118,-10000.01,0.00018663,2]
[392350318,1761392588266,-10000.01,0.00018663,2]
[392350319,1761392588427,-10000.01,0.00018663,2]
[392350320,1761392588561,-10000.01,0.00018663,2]
[392350321,1761392591985,300.0,0.000181,2]
[392350322,1761392595461,5000.0,0.00018297,2]
[392350323,1761392602220,300.0,0.000181,2]
[392350324,1761392603661,5000.0,0.00018297,2]
[392350325,1761392619053,-416.36,0.00018653,3]
[392350326,1761392619339,5000.0,0.00018297,2]
[392350327,1761392627281,4167.29,0.00018653,2]
[392350328,1761392627304,832.71,0.00018653,2]
[392350329,1761392637688,155.02832325,0.00018634,2]
[392350330,1761392639672,155.02832322,0.00018644,2]
[392350331,1761392643316,5000.0,0.00018653,2]
[392350332,1761392649249,-155.02832322,0.00018653,2]
[392350333,1761392651908,5000.0,0.00018653,2]
[392350334,1761392662909,196.0,0.00016,2]
[392350335,1761392663181,196.0,0.00016111,2]
[392350336,1761392663448,196.0,0.00016221,2]
[392350337,1761392663692,196.0,0.00016332,2]
[392350338,1761392663925,196.0,0.00016442,2]
[392350339,1761392664158,-300.0,0.00018661,2]
[392350340,1761392664251,196.0,0.00016553,2]
[392350341,1761392664490,196.0,0.00016663,2]
[392350342,1761392664737,196.0,0.00016774,2]
[392350343,1761392664977,196.0,0.00016884,2]
[392350344,1761392665211,196.0,0.00016995,2]
[392350345,1761392665491,196.0,0.00017105,2]
[392350346,1761392665757,196.0,0.00017216,2]
[392350347,1761392666269,196.0,0.00017326,2]
[392350348,1761392666325,196.0,0.00017437,2]
[392350349,1761392666461,196.0,0.00017547,2]
[392350350,1761392666700,196.0,0.00017658,2]
[392350351,1761392666973,196.0,0.00017768,2]
[392350352,1761392667198,196.0,0.00017879,2]
[392350353,1761392667433,196.0,0.00017989,2]
[392350354,1761392667727,219.33959075,0.000181,2]
[392350355,1761392668704,5000.0,0.00018661,2]
[392350356,1761392676715,1436.67040925,0.00018661,2]
[392350357,1761392676738,3563.32959075,0.00018661,2]
[392350358,1761392679777,205.68315899,0.00018618,2]
[392350359,1761392687790,1291.95,0.00018661,2]
[392350360,1761392692058,5000.0,0.00018661,2]
[392350361,1761392699973,3502.37684101,0.00018661,2]
[392350362,1761392699999,1497.62315899,0.00018661,2]
[392350363,1761392701622,273.0,0.0001866,2]
[392350364,1761392703769,300.0,0.0001866,2]
[392350365,1761392703800,1200.0,0.0001866,2]
[392350366,1761392704175,1810.41,0.00018661,2]
[392350367,1761392704261,300.0,0.0001866,2]
[392350368,1761392704486,300.0,0.0001866,2]
[392350369,1761392713356,1188.01,0.00018661,2]
[392350370,1761392714147,500.0,0.00018661,2]
[392350371,1761392715322,500.0,0.00018661,2]
[392350372,1761392715899,2130.96684101,0.00018661,2]
[392350373,1761392715924,2869.03315899,0.00018661,2]
[392350374,1761392723822,5000.0,0.00018661,2]
[392350375,1761392726308,500.0,0.00018661,2]
[392350376,1761392727417,500.0,0.00018661,2]
[392350377,1761392728271,500.0,0.00018661,2]
[392350378,1761392732840,500.0,0.00018661,2]
[392350379,1761392735119,130.97684101,0.00018661,2]
[392350380,1761392735146,381.00138722,0.00018661,2]
[392350381,1761392737564,500.0,0.00018661,2]
[392350382,1761392737991,448.53036485,0.00018661,2]
[392350383,1761392738550,500.0,0.00018661,2]
[392350384,1761392740208,5000.0,0.00018661,2]
[392350385,1761392740602,500.0,0.00018661,2]
[392350386,1761392742678,500.0,0.00018661,2]
[392350387,1761392743146,500.0,0.00018661,2]
[392350388,1761392744119,500.0,0.00018661,2]
[392350389,1761392748159,1170.47824793,0.00018661,2]
[392350390,1761392748182,3829.52175207,0.00018661,2]
[392350391,1761392763814,5000.0,0.00018297,2]
[392350392,1761392771802,4940.73479901,0.00018596,2]
[392350393,1761392782901,59.27520099,0.00016,2]
[392350394,1761392782934,137.89177855,0.00016,2]
[392350395,1761392787794,5000.0,0.00018596,2]
[392350396,1761392795736,1049.51987874,0.00018596,2]
[392350397,1761392811848,3812.59834271,0.00018596,2]
[392350398,1761392811873,1187.40165729,0.00018596,2]
[392350399,1761392817362,1913.79288832,0.00018547,2]
[392350401,1761392834994,5000.0,0.00018596,2]
[392350402,1761392857724,1898.81545439,0.00018596,2]
[392350403,1761392857750,3101.18454561,0.00018596,2]
[392350404,1761392869029,193.1,0.00030137,120]
[392350406,1761392881859,5000.0,0.000201,9]
[392350407,1761392888330,905.83894534,0.00018577,2]
[392350408,1761392904691,5000.0,0.000201,9]
[392350409,1761392927850,5000.0,0.000201,9]
[392350410,1761392951107,5000.0,0.00018596,2]
[392350418,1761392970472,155.02832322,0.0001856,2]
[392350419,1761392974456,837.95818583,0.00018596,2]
[392350420,1761392974484,4162.04181417,0.00018596,2]
[392350421,1761392997255,5000.0,0.00018596,2]
[392350422,1761393020189,837.96818583,0.00018596,2]
[392350423,1761393020212,4162.03181417,0.00018596,2]
[392350449,1761393037665,-828.0,0.00018653,3]
[392350450,1761393037674,-333.33061196,0.00018655,2]
[392350451,1761393037684,-1200.0,0.00018658,2]
[392350452,1761393037693,-300.0,0.00018658,2]
[392350453,1761393037702,-500.0,0.00018658,2]
[392350454,1761393037711,-166.70405857,0.00018658,2]
[392350795,1761393042889,-272.66241696,0.00018658,2]
[392350812,1761393043048,-60.63352447,0.00018658,2]
[392350815,1761393043057,-500.0,0.00018658,2]
[392350818,1761393043066,-500.0,0.00018658,2]
[392350822,1761393043075,-500.0,0.00018658,2]
[392350826,1761393043085,-500.0,0.00018658,2]
[392350829,1761393043094,-500.0,0.00018658,2]
[392350832,1761393043103,-500.0,0.00018658,2]
[392350835,1761393043112,-500.0,0.00018658,2]
[392350838,1761393043121,-500.0,0.00018658,2]
[392350840,1761393043130,-541.38818436,0.00018658,2]
[392350843,1761393043139,-500.0,0.00018658,2]
[392350846,1761393043151,-500.0,0.00018658,2]
[392350848,1761393043166,-500.0,0.00018658,2]
[392350850,1761393043178,-500.0,0.00018658,2]
[392350852,1761393043187,-500.0,0.00018658,2]
[392350854,1761393043197,-500.0,0.00018658,2]
[392350856,1761393043207,-500.0,0.00018658,2]
[392350858,1761393043216,-159.45829117,0.00018658,2]
[392350911,1761393043743,5000.0,0.00018596,2]
[392351125,1761393045886,-340.54170883,0.00018658,2]
[392351127,1761393045896,-139.45829117,0.00018658,2]
[392351836,1761393066616,837.97818583,0.00018596,2]
[392351837,1761393066638,4162.02181417,0.00018596,2]
[392351838,1761393089246,5000.0,0.00018596,2]
[392351839,1761393112017,837.98818583,0.00018596,2]
[392351840,1761393112042,4162.01181417,0.00018596,2]
[392351841,1761393114155,150.0,0.00017263,30]
[392351842,1761393114565,150.0,0.00018085,30]
[392351843,1761393114995,150.0,0.00018907,30]
[392351847,1761393135808,5000.0,0.00018596,2]
[392351850,1761393148490,603.89263024,0.00018577,2]
[392351851,1761393158340,234.10555559,0.00017832,2]
[392351852,1761393158367,127.38347285,0.00017832,2]
[392351853,1761393158771,5000.0,0.00018596,2]
[392351855,1761393180082,790.723144,0.00013699,2]
[392351856,1761393181732,4081.90338315,0.00018596,2]
[392351857,1761393181753,918.09661685,0.00018596,2]
[392351858,1761393205097,3430.95775839,0.00018596,2]
[392351859,1761393296713,915.03787049,0.00018557,2]
[392351860,1761393298713,915.03787047,0.00018562,2]
[392351861,1761393300746,915.03787047,0.00018567,2]
[392351862,1761393302754,915.03787047,0.00018572,2]
[392351863,1761393304738,915.03787047,0.00018577,2]
[392351864,1761393355610,1075.76627239,0.0001766,2]
[392351865,1761393355633,923.09883161,0.0001766,2]
[392351866,1761393360883,160.0,0.000185,2]
[392351868,1761393386787,206.5999164,8.83e-05,2]
[392351869,1761393408949,402.59508682,0.00018561,2]
[392351871,1761393538083,8307.71616517,0.00017655,2]
[392351872,1761393538104,10000.01,0.00017655,2]
[392351873,1761393538125,2946.82415083,0.00017655,2]
[392351874,1761393550605,5063.8020866,0.00018082,2]
[392351875,1761393657900,622.11204116,0.00018552,2]
[392351876,1761393669535,268.39672454,0.00018559,2]
[392351878,1761393706303,1098.87499687,0.00018,2]
[392351879,1761393706326,10000.01,0.00018,2]
[392351880,1761393706347,10000.01,0.00018,2]
[392351881,1761393706369,10000.01,0.00018,2]
[392351882,1761393706389,4467.70980579,0.00018,2]
[392351883,1761393766158,237.55271077,0.00017832,2]
[392351884,1761393768270,427.59487939,0.00017832,2]
[392351885,1761393770460,760.16867447,0.00017832,2]
[392351886,1761393772672,1187.76355386,0.00017832,2]
[392351887,1761393777751,624.71925832,0.00017827,2]
[392351888,1761393901775,300.0,0.00018551,2]
[392351889,1761393902659,300.0,0.00018551,2]
[392351890,1761393903762,300.0,0.00018551,2]
[392351891,1761393903798,300.0,0.00018551,2]
[392351892,1761393903834,1200.0,0.00018551,2]
[392351893,1761393905714,300.0,0.00018551,2]
[392351894,1761393925064,500.27618,0.00030137,120]
[392351895,1761393929587,268.39672454,0.000185,2]
[392351896,1761393967949,300.0,0.00018551,2]
[392351897,1761393968462,250.0,0.000201,10]
[392351898,1761393992835,195.78437426,0.00018551,2]
[392351899,1761393993660,500.0,0.00018551,2]
[392351900,1761393993708,247.95306229,0.00018551,2]
[392351901,1761393993778,500.0,0.00018551,2]
[392351902,1761393993806,500.0,0.00018551,2]
[392351903,1761393993860,500.0,0.00018551,2]
[392351904,1761393993902,500.0,0.00018551,2]
[392351905,1761393993941,500.0,0.00018551,2]
[392351906,1761394000685,433.0841532,0.00018551,2]
[392351907,1761394000801,500.0,0.00018551,2]
[392351908,1761394000833,500.0,0.00018551,2]
[392351909,1761394000873,500.0,0.00018551,2]
[392351910,1761394000911,500.0,0.00018551,2]
[392351911,1761394000942,500.0,0.00018551,2]
[392351912,1761394000971,354.79168571,0.00018551,2]
[392351913,1761394000994,145.20831429,0.00018551,2]
[392351914,1761394001021,500.0,0.00018551,2]
[392351915,1761394001050,500.0,0.00018551,2]
[392351916,1761394001076,500.0,0.00018551,2]
[392351917,1761394001106,500.0,0.00018551,2]
[392351918,1761394001135,500.0,0.00018551,2]
[392351919,1761394001163,500.0,0.00018551,2]
[392351920,1761394001188,500.0,0.00018551,2]
[392351921,1761394001216,500.0,0.00018551,2]
[392351922,1761394001244,500.0,0.00018551,2]
[392351923,1761394001272,500.0,0.00018551,2]
[392351924,1761394001299,346.14926479,0.00018551,2]
[392351925,1761394001336,500.0,0.00018551,2]
[392351926,1761394001363,500.0,0.00018551,2]
[392351927,1761394001394,500.0,0.00018551,2]
[392351928,1761394001429,500.0,0.00018551,2]
[392351929,1761394001469,500.0,0.00018551,2]
[392351930,1761394001500,500.0,0.00018551,2]
[392351931,1761394001528,500.0,0.00018551,2]
[392351932,1761394001560,500.0,0.00018551,2]
[392351933,1761394001588,500.0,0.00018551,2]
[392351934,1761394001618,8.65242092,0.00018551,2]
[392351935,1761394001642,491.34757908,0.00018551,2]
[392351936,1761394001675,500.0,0.00018551,2]
[392351937,1761394001729,500.0,0.00018551,2]
[392351938,1761394001773,500.0,0.00018551,2]
[392351939,1761394001806,500.0,0.00018551,2]
[392351940,1761394001835,500.0,0.00018551,2]
[392351941,1761394001870,500.0,0.00018551,2]
[392351942,1761394001907,500.0,0.00018551,2]
[392351943,1761394001951,500.0,0.00018551,2]
[392351944,1761394001984,500.0,0.00018551,2]
[392351945,1761394002264,500.0,0.00018551,2]
[392351946,1761394002292,500.0,0.00018551,2]
[392351947,1761394002319,500.0,0.00018551,2]
[392351948,1761394002355,500.0,0.00018551,2]
[392351949,1761394002386,500.0,0.00018551,2]
[392351950,1761394002421,500.0,0.00018551,2]
[392351951,1761394002451,500.0,0.00018551,2]
[392351952,1761394002478,500.0,0.00018551,2]
[392351953,1761394002518,629.83834298,0.00018551,2]
[392351954,1761394002548,378.82407794,0.00018551,2]
[392351955,1761394002571,121.17592206,0.00018551,2]
[392351956,1761394002607,500.0,0.00018551,2]
[392351957,1761394002638,500.0,0.00018551,2]
[392351958,1761394002674,500.0,0.00018551,2]
[392351959,1761394002704,500.0,0.00018551,2]
[392351960,1761394011173,500.0,0.00018551,2]
[392351961,1761394011202,500.0,0.00018551,2]
[392351962,1761394011233,500.0,0.00018551,2]
[392351963,1761394011266,500.0,0.00018551,2]
[392351964,1761394011306,500.0,0.00018551,2]
[392351965,1761394011348,500.0,0.00018551,2]
[392351966,1761394011391,500.0,0.00018551,2]
[392351967,1761394011422,500.0,0.00018551,2]
[392351968,1761394011452,500.0,0.00018551,2]
[392351969,1761394011478,500.0,0.00018551,2]
[392351970,1761394011517,500.0,0.00018551,2]
[392351971,1761394011555,500.0,0.00018551,2]
[392351972,1761394011586,500.0,0.00018551,2]
[392351973,1761394011620,500.0,0.00018551,2]
[392351974,1761394011656,500.0,0.00018551,2]
[392351975,1761394011701,378.83407794,0.00018551,2]
[392351976,1761394011724,121.16592206,0.00018551,2]
[392351977,1761394011782,375.62345875,0.00018551,2]
[392351978,1761394020452,5000.0,0.00018552,2]
[392351979,1761394021136,475.03,0.00018542,3]
[392351980,1761394022029,224.49723143,0.00018551,2]
[392351981,1761394022069,162.81107302,0.00018551,2]
[392351982,1761394024031,300.0,0.00018551,2]
[392351983,1761394025483,500.0,0.00018551,2]
[392351984,1761394025511,500.0,0.00018551,2]
[392351985,1761394025539,258.5264086,0.00018551,2]
[392351986,1761394025569,500.0,0.00018551,2]
[392351987,1761394025603,500.0,0.00018551,2]
[392351988,1761394025655,500.0,0.00018551,2]
[392351989,1761394025708,500.0,0.00018551,2]
[392351990,1761394025788,82.35590614,0.00018551,2]
[392351991,1761394025810,417.64409386,0.00018551,2]
[392351993,1761394027614,500.0,0.00018551,2]
[392351994,1761394027956,500.0,0.00018551,2]
[392351995,1761394028277,500.0,0.00018551,2]